Cogmind - Beta 16 @@@ ROGUE MODE // 2025.10.23 @ 17:21:51 Player: Zaros426 Result: Destroyed by S-10 Pest with Light Assault Rifle Performance ------------- Evolutions (0) 0 Regions Visited (3) 600 Robots Destroyed (58) 290 Value Destroyed (1250) 1250 Prototype IDs (13) 260 Alien Tech Used (0) 0 Bonus (-289) -289 TOTAL SCORE: 2111 Bonus ------- Friendly Fire -289 Cogmind --------- Core Integrity 0/250 Matter 300/300 Energy 195/200 System Corruption 0% Temperature Cool (0) Movement Rolling (130) Ox2 Location -10/Subcaves Parts ------- > --- POWER (1) -------- Subdweller Power Source > --- PROPULSION (2) --- Spiked Treads Subdweller Monowheel > --- UTILITY (2) ------ High-capacity Storage Unit Seismic Detector > --- WEAPON (2) ------- Subdweller Beam Cannon Makeshift Sword > --- INVENTORY (20) --- Light Treads Subdweller Monowheel Subdweller Monowheel Humpback High-capacity Battery (250) Structural Scanner Advanced Visual Processing Unit Makeshift Transmission Jammer ECM Suite Makeshift Hacking Suite Improved Trap Extractor (0/6) Cobbler Unit Rainbow Chip Subdweller Beam Cannon Subdweller Beam Cannon Subdweller Machine Gun Subdweller Machine Gun Subdweller Shrapnel Launcher Peak State ------------ > --- POWER ------------ Improved Ion Engine > --- PROPULSION ------- Light Treads Armored Treads > --- UTILITY ---------- High-capacity Storage Unit Improved Light Armor Plating > --- WEAPON ----------- Subdweller Machine Gun Makeshift Sword > --- INVENTORY -------- Improved Ion Engine Light Treads Compact Wheel Disposable Heat Sink High-capacity Battery Structural Scanner Advanced Visual Processing Unit Seismic Detector Transport Network Coupler Makeshift Transmission Jammer ECM Suite Improved Trap Extractor Cobbler Unit Rainbow Chip EM Pulse Gun Advanced Beam Cannon Advanced Beam Cannon Advanced Beam Cannon Assault Cannon [Rating: 21] Favorites ----------- Power Improved Ion Engine Engine Improved Ion Engine Propulsion Light Treads Treads Light Treads Wheel Subdweller Monowheel Utility Seismic Detector Device Seismic Detector Storage High-capacity Storage Unit Protection Improved Light Armor Plating Weapon Advanced Beam Cannon Energy Gun EM Pulse Gun Energy Cannon Advanced Beam Cannon Ballistic Gun Subdweller Machine Gun Launcher Grenade Launcher Special Weapon Mining Laser Impact Weapon Great Maul Slashing Weapon Makeshift Sword Build | -11 -10 -10 -10 ------- Run | Yrd Mat Min Sub Slots Evolved . | . . . . Power . | . . . . Propulsion . | . . . . Utility . | . . . . Weapon . | . . . . Parts Attached 34 | 4 13 3 14 Power 4 | . 2 . 2 Engine 4 | . 2 . 2 Core . | . . . . Reactor . | . . . . Propulsion 8 | 2 1 2 3 Treads 5 | 2 1 1 1 Leg . | . . . . Wheel 3 | . . 1 2 Hover . | . . . . Flight . | . . . . Utility 9 | 1 5 . 3 Device 6 | 1 3 . 2 Storage 2 | . 2 . . Processor . | . . . . Hackware . | . . . . Protection 1 | . . . 1 Artifact . | . . . . Weapon 13 | 1 5 1 6 Energy Gun 1 | . 1 . . Energy Cannon 4 | . 3 . 1 Ballistic Gun 4 | 1 . . 3 Ballistic Cannon . | . . . . Launcher 1 | . . 1 . Special Weapon 1 | . 1 . . Impact Weapon 1 | . . . 1 Slashing Weapon 1 | . . . 1 Piercing Weapon . | . . . . Special Melee Weapon . | . . . . Unidentified Prototypes 1 | . 1 . . Parts Lost 3 | . 1 . 2 Power . | . . . . Propulsion 1 | . 1 . . Utility 1 | . . . 1 Weapon 1 | . . . 1 Highest Loss Streak 1 | . 1 . 1 To Critical Strikes . | . . . . Average Backups 16 | 3 9 19 18 Power . | . . 1 . Propulsion 1 | . . 1 2 Utility 8 | . 2 8 10 Weapon 5 | 1 4 7 5 Tool/Special . | . . . . Unused Backups 24 | . 6 1 17 Power 1 | . 1 . . Propulsion 2 | . 1 . 1 Utility 10 | . 1 . 9 Weapon 11 | . 3 1 7 Tool/Special . | . . . . Average Slot Usage (%) 95 | . 85 100 99 Engine 12 | . 8 14 14 Treads 25 | . 28 24 24 Wheel 2 | . . 3 3 Device 12 | . 14 14 10 Storage 12 | . 7 14 14 Protection 1 | . . . 3 Energy Cannon 14 | . 17 19 12 Ballistic Gun 4 | . 4 . 5 Launcher 2 | . . 8 1 Impact Weapon 1 | . . . 1 Slashing Weapon 3 | . . . 6 Peak Build Rating 21 | 4 14 17 21 Average Rating 15 | 2 10 14 18 On Entrance 8 | . 4 13 15 Avg Prop Armor Cover (%) 22 | 31 28 15 17 Naked Turns . | . . . . Heaviest Build 62 | 3 56 56 62 Greatest Support 40 | 3 40 40 40 Greatest Overweight (x) 3 | . 1 3 3 Average Overweight (x) . | . . 1 1 Largest Inventory Capacity 20 | 5 20 20 20 Average Capacity 17 | 5 11 19 20 Most Carried 20 | 5 15 20 20 Average Carried 16 | 3 9 19 19 Final Capacity 20 | 5 15 20 20 Final Carried 20 | 5 15 20 20 Class Distribution -------------------- 96% | Mutant 3% | Scavenger-Mutant Dominant Class ---------------- Mutant | -10/Materials Mutant | -10/Mines Mutant | -10/Subcaves Resources | -11 -10 -10 -10 ----------- Run | Yrd Mat Min Sub Matter Collected 1166 | 178 452 100 436 Remotely . | . . . . Salvage Created 1733 | 41 973 72 647 Parts 132 | 5 66 14 47 Haulers Intercepted 2 | . 2 . . Recyclers Shooed 4 | 1 2 1 . Parts Field Recycled . | . . . . Retrieved Matter . | . . . . Parts Self-Destructed 5 | . . . 5 Prevented . | . . . . Parts Restored . | . . . . Kills | -11 -10 -10 -10 ------- Run | Yrd Mat Min Sub Combat Hostiles Destroyed 37 | . 17 6 14 Guns 7 | . 4 . 3 Cannons 20 | . 13 . 7 AOE 10 | . . 6 4 Classes Destroyed 14 | 1 9 . 4 Worker 3 | . 2 1 . Builder 5 | . 3 2 . Tunneler 2 | 2 . . . Hauler 2 | . 2 . . Recycler 2 | . 2 . . Mechanic 1 | . 1 . . Operator 2 | . 2 . . Watcher 3 | . 3 . . Swarmer 12 | . 6 6 . Grunt 12 | . 11 . 1 Sentry 1 | . . . 1 Artisan 1 | . . . 1 Subdweller 12 | . . . 12 Zionite 1 | . . . 1 Best Kill Streak 7 | 1 4 7 3 Combat Bots Only 3 | . 3 3 3 Max Kills in Single Turn 3 | 1 2 3 1 Gunslinging . | . . . . Exploded 3 | . . 3 1 Melee . | . . . . Uniques/NPCs Destroyed . | . . . . Combat | -11 -10 -10 -10 -------- Run | Yrd Mat Min Sub Hostile Shots Fired 124 | . 60 11 53 Missed 34 | . 17 1 16 Hits 90 | . 43 10 37 Projectile 90 | . 43 10 37 AOE 6 | . . . 6 Critical Strikes 4 | . 1 . 3 Damage Taken 1456 | . 424 80 952 Core 256 | . 47 10 199 Absorbed by Shields . | . . . . Core Remaining (%) 100 | 100 . . . Volleys Fired 149 | 13 89 14 33 Largest 2 | 1 2 2 2 Hottest 136 | 20 136 136 136 Shots Fired 226 | 13 138 16 59 Gun 75 | 13 39 . 23 Cannon 127 | . 85 12 30 Launcher 10 | . . 4 6 Special 14 | . 14 . . Kinetic 73 | 13 37 . 23 Thermal 141 | . 99 12 30 Explosive 10 | . . 4 6 Electromagnetic 2 | . 2 . . Robot Hit Streak 17 | 4 10 4 17 Robot Miss Streak 5 | 2 5 3 1 Penetration Max . | . . . . Secondary Targets . | . . . . Shots Hit Robots 145 | 9 69 9 58 Core Hits 73 | 3 34 9 27 Critical Kills . | . . . . Critical Parts Destroyed . | . . . . Critical Strikes . | . . . . Melee Attacks 41 | . . . 41 Impact 12 | . . . 12 Slashing 29 | . . . 29 Piercing . | . . . . Sneak Attacks 3 | . . . 3 Combat Hostiles . | . . . . Follow-up Attacks . | . . . . Damage Inflicted 4190 | 116 1438 443 2193 Guns 786 | 116 274 . 396 Cannons 1758 | . 1095 124 539 Explosions 821 | . 69 319 433 Melee 825 | . . . 825 Ramming . | . . . . Kinetic 786 | 116 274 . 396 Thermal 1827 | . 1164 124 539 Explosive 752 | . . 319 433 Electromagnetic . | . . . . Impact 115 | . . . 115 Slashing 710 | . . . 710 Piercing . | . . . . Highest Corruption . | . . . . Average Corruption . | . . . . Corruption Purged . | . . . . Corruption Blocked . | . . . . Overload Shots . | . . . . Overflow Damage 161 | . 51 . 110 Projectiles 12 | . 12 . . Explosions 40 | . 39 . 1 Melee 109 | . . . 109 Knockbacks 1 | . . . 1 Impact 1 | . . . 1 Kinetic . | . . . . Secondary . | . . . . Self-Inflicted Damage 14 | . . . 14 Shots 2 | . . . 2 Rammed . | . . . . Targets Rammed . | . . . . Kicked . | . . . . Crushed . | . . . . Highest Temperature 312 | . 312 101 24 Average Temperature 87 | . 97 36 12 Received Heat Transfer 243 | . 132 . 111 Effects 3 | . 3 . . Interference 3 | . 3 . . Siege Activations . | . . . . Martial Activations . | . . . . Shielding Activations . | . . . . Robots Disrupted . | . . . . Combat Hostiles . | . . . . Robots Corrupted 1 | . . . 1 Combat Hostiles . | . . . . Parts Fried 1 | . . . 1 Impact Corruptions 3 | . . . 3 Robots Melted . | . . . . Combat Hostiles . | . . . . Parts Melted . | . . . . Heat Transferred 3047 | . 1974 222 851 Parts Sabotaged . | . . . . Parts Stolen . | . . . . Parts Stripped . | . . . . Power Chain Reactions . | . . . . Alert | -11 -10 -10 -10 ------- Run | Yrd Mat Min Sub Maximum Alert Level 1 | . 1 . . Low Security (%) 78 | 100 67 100 . Level 1 21 | . 32 . . Level 2 . | . . . . Level 3 . | . . . . Level 4 . | . . . . Level 5 . | . . . . High Security . | . . . . Max Security . | . . . . Peak Influence 270 | 5 270 171 . Initial 100 | . . 100 . Average 112 | . 139 62 . Influence Increases 1079 | 10 798 201 70 Destroy 0b10 Robot/C 500 | . 340 120 40 Destroy 0b10 Robot/NC 100 | 10 75 15 . Destroy Leader 110 | . 90 20 . Successful Hack 32 | . 32 . . Select Force Hacks 60 | . 60 . . Disable Machine 30 | . 15 15 . Destroy Structure 67 | . 36 31 . Partial Spotted 15 | . 15 . . Lose Combat Pursuer 165 | . 135 . 30 Influence Decreases 1049 | 10 541 458 40 Entered New Map 157 | . . 157 . Time Decay 879 | 10 528 301 40 Lost Part 10 | . 10 . . Lost Ally 3 | . 3 . . Squads Dispatched 6 | . 6 . . Investigation 4 | . 4 . . Extermination . | . . . . Reinforcement 2 | . 2 . . Assault . | . . . . Garrison . | . . . . Intercept . | . . . . Searches Triggered . | . . . . Construction Impeded . | . . . . Haulers Reinforced . | . . . . Active Scanning Responses . | . . . . Cargo Convoy Interrupts . | . . . . Stealth | -11 -10 -10 -10 --------- Run | Yrd Mat Min Sub Distress Signals 1 | . 1 . . Communications Jammed . | . . . . Distress Signals . | . . . . Times Spotted 59 | . 31 7 21 Peak Tracking Total 6 | . 6 3 6 Tactical Retreats 6 | . 4 . 2 ECM-based Alert Blocks 2 | . . . 2 Traps | -11 -10 -10 -10 ------- Run | Yrd Mat Min Sub Traps Triggered 1 | . 1 . . Indirectly . | . . . . Trap Hack Attempts . | . . . . Triggered . | . . . . Disarmed . | . . . . Reprogrammed . | . . . . Reused . | . . . . Traps Extracted . | . . . . Installed . | . . . . Triggered . | . . . . Machines | -11 -10 -10 -10 ---------- Run | Yrd Mat Min Sub Machines Disabled 4 | . 1 1 2 Max in Single Turn 1 | . 1 1 1 Machines Repaired . | . . . . Machines Dismantled . | . . . . Machines Sabotaged . | . . . . Overloaded Fab Kills . | . . . . Hacking | -11 -10 -10 -10 --------- Run | Yrd Mat Min Sub Machines Accessed 13 | . 8 1 4 Terminals 6 | . 6 . . Fabricators . | . . . . Repair Stations . | . . . . Recycling Units 2 | . 2 . . Scanalyzers . | . . . . Garrison Access . | . . . . Total Hacks 25 | . 17 1 7 Successful 19 | . 11 1 7 Failed 5 | . 5 . . Catastrophic . | . . . . Database Lockouts 1 | . 1 . . Manual 19 | . 19 . . Terminals 15 | . 15 . . Fabricators . | . . . . Repair Stations . | . . . . Recycling Units 2 | . 2 . . Scanalyzers . | . . . . Garrison Access . | . . . . Terminal Hacks 10 | . 2 1 7 Record 5 | . . . 5 Robot Analysis 1 | . 1 . . Open Door 2 | . . 1 1 Terminal Index 1 | . 1 . . Proto ID Catalog 1 | . . . 1 Fabricator Hacks . | . . . . Repair Station Hacks . | . . . . Recycling Unit Hacks . | . . . . Scanalyzer . | . . . . Garrison Access Hacks . | . . . . Unauthorized Hacks 9 | . 9 . . Terminals 7 | . 7 . . Assimilate 1 | . 1 . . Botnet 1 | . 1 . . Skim 5 | . 5 . . Fabricators . | . . . . Repair Stations . | . . . . Recycling Units 2 | . 2 . . Tunnel 2 | . 2 . . Scanalyzers . | . . . . Garrison Access . | . . . . Data Cores Recovered . | . . . . Used . | . . . . Hacking Detections 5 | . 5 . . Full Trace Events 1 | . 1 . . Feedback Events . | . . . . Feedback Blocked . | . . . . Robot Schematics Acquired . | . . . . Robots Built . | . . . . Authchips . | . . . . Time . | . . . . Total Robot Build Rating . | . . . . Part Schematics Acquired . | . . . . Parts Built . | . . . . Authchips . | . . . . Time . | . . . . Total Part Build Rating . | . . . . Part Studies Acquired . | . . . . Parts Repaired . | . . . . Time . | . . . . Parts Recycled . | . . . . Recycled Matter . | . . . . Retrieved Matter . | . . . . Retrieved Components . | . . . . Parts Scanalyzed . | . . . . Part Schematics Acquired . | . . . . Parts Damaged . | . . . . Bothacking | -11 -10 -10 -10 ------------ Run | Yrd Mat Min Sub Used RIF Installer . | . . . . Robots Hacked . | . . . . Non-combat . | . . . . Combat . | . . . . Robot Hacks Applied . | . . . . Relay Couplers Released . | . . . . Fabnet Peak Effective % . | . . . . Robots Rewired . | . . . . Allies Hacked . | . . . . Hacks Repelled . | . . . . Allies | -11 -10 -10 -10 -------- Run | Yrd Mat Min Sub Total Allies 1 | . 1 . . Largest Group 1 | . 1 . . Highest-Rated Group 10 | . 10 . . Highest-Rated Ally 10 | . 10 . . Total Orders . | . . . . Ally Attacks . | . . . . Total Damage . | . . . . Kills . | . . . . Allies Corrupted . | . . . . Allies Melted . | . . . . Intel | -11 -10 -10 -10 ------- Run | Yrd Mat Min Sub Active Infowar (turns) 4797 | 5 1167 769 2856 Structural 108 | . . . 108 Seismic 4563 | 5 1167 769 2622 ECM 126 | . . . 126 Robot Analysis Total 1 | . 1 . . Derelict Logs Recovered 2 | . . 1 1 Drone Launches . | . . . . Drone Recoveries . | . . . . Exploration | -11 -10 -10 -10 ------------- Run | Yrd Mat Min Sub Turns Passed 6209 | 69 1645 769 3726 Spaces Moved 2938 | 60 951 315 1612 Core 554 | 60 494 . . Treads 1642 | . 457 173 1012 Legs . | . . . . Wheels 742 | . . 142 600 Hover . | . . . . Flight . | . . . . Fastest Speed 50 | 50 50 145 130 Average Speed 168 | 50 108 196 202 Slowest Speed 245 | 50 240 245 245 Overloaded Moves . | . . . . Propulsion Burnouts . | . . . . Robots Hopped . | . . . . Potential Cave-ins . | . . . . Cave-ins Triggered . | . . . . Exploration Rate (%) 63 | 3 100 58 91 Regions Visited 3 Branch Regions 2 Pre-discovered Areas 4 | . 2 1 1 Known Exits Taken . | . . . . Unknown Exits Taken 3 | 1 1 1 . Scrap Searched 6 | . . . 6 Spaces Dug 21 | . 13 . 8 Terrain Destroyed 108 | . 29 36 43 Melee 8 | . . . 8 Projectile 15 | . 14 . 1 AOE 85 | . 15 36 34 Terrain Rammed . | . . . . Walls Destroyed . | . . . . Machines Disabled . | . . . . Actions | -11 -10 -10 -10 --------- Run | Yrd Mat Min Sub Total 3889 | 83 1397 449 1960 Wait 607 | . 297 106 204 Move 2935 | 59 950 314 1612 Hop . | . . . . Pick Up 48 | 6 20 7 15 Fast Attach 12 | 4 4 . 4 Attach 8 | . 7 . 1 Detach 6 | . 6 . . Swap 48 | . 13 6 29 Drop 35 | 1 11 2 21 Fire 149 | 13 89 14 33 Melee 41 | . . . 41 Ram . | . . . . Kick . | . . . . Crush . | . . . . Escape Stasis . | . . . . Rewire . | . . . . Trap . | . . . . Miscellaneous . | . . . . Route ------- -11/Scrapyard -10/Materials (discovered 6 exits: [*Mat x3] / *Min x2 / *Sub) -10/Mines (discovered 3 exits: [*Mat] / [*Exi] / *Sub) -10/Subcaves (discovered 2 exits: [*Mat x2]) History --------- Turn | Location | Event 11 | -11/Scrapyard | Discovered new exit (range 16) 70 | -11/Scrapyard | Entered Materials 241 | -10/Materials | Discovered new exit (range 6) 307 | -10/Materials | Build established: Mutant 356 | -10/Materials | Discovered new exit (range 16) 482 | -10/Materials | Discovered new exit (range 8) 612 | -10/Materials | Discovered new exit (range 6) 613 | -10/Materials | Central database locked down 848 | -10/Materials | Discovered new exit (range 8) 1329 | -10/Materials | Discovered new exit (range 9) 1715 | -10/Materials | Entered Mines 1730 | -10/Mines | Met a Derelict who couldn't figure out how to use a Trap Extractor 2135 | -10/Mines | Deemed a non-threat by the Exiles lab entrance 2138 | -10/Mines | Discovered new exit (range 5) 2208 | -10/Mines | Received a Rocket Launcher from a helpful Derelict 2232 | -10/Mines | Assembled infested the area 2346 | -10/Mines | Discovered new exit (range 8) 2407 | -10/Mines | Discovered new exit (range 5) 2484 | -10/Mines | Entered Subcaves 2519 | -10/Subcaves | Core integrity fell below 50% 3317 | -10/Subcaves | A swath of the cavern ceiling suddenly collapsed 3431 | -10/Subcaves | Ambushed by Subdwellers from Twisted Machinery 3620 | -10/Subcaves | Visited 4L-MR0's lab 3649 | -10/Subcaves | Found Rainbow Chip 3880 | -10/Subcaves | Learned location of Zion (-7) 3880 | -10/Subcaves | Met a Zionite searching for "candidates" 3977 | -10/Subcaves | A swath of the cavern ceiling suddenly collapsed 4171 | -10/Subcaves | Core integrity fell below 20% 4504 | -10/Subcaves | Discovered new exit (range 15) 5023 | -10/Subcaves | Visited Clippyterm 5030 | -10/Subcaves | Learned Factory emergency access door positions 5228 | -10/Subcaves | Discovered new exit (range 8) 5271 | -10/Subcaves | Ambushed by Subdweller buried in earth 5271 | -10/Subcaves | Ambushed by Subdweller buried in earth 5385 | -10/Subcaves | Shifting Twisted Machinery released Sub. Monowheel 5390 | -10/Subcaves | Shifting Twisted Machinery released Sub. Shrapnel Launcher 5502 | -10/Subcaves | Shifting Twisted Machinery released Barrage Gun 5506 | -10/Subcaves | Shifting Twisted Machinery released Spk. Treads 6191 | -10/Subcaves | Shifting Twisted Machinery released Sub. Beam Cannon 6199 | -10/Subcaves | Shifting Twisted Machinery released Sub. Beam Cannon 6210 | -10/Subcaves | Destroyed by S-10 Pest with Light Assault Rifle Last Messages --------------- 05801_ Sneak attack on T7-C35(R). 05803_ T7-C35(R) destroyed. 05805_ Acquired 24 matter. 05807_ Sneak attack on W3-73S(R). 05807_ W3-73S(R) destroyed. 05810_ Sneak attack on PE-YAU(R). 05812_ Destroyed Sub. Power Source. 05814_ Sneak attack on PE-YAU(R). 05816_ Destroyed Scrap Shield. 05818_ Sneak attack on PE-YAU(R). 05818_ PE-YAU(R) destroyed. 05824_ Dropped Broken Sub. Machine Gun. 05824_ Acquired Sub. Machine Gun. 05824_ Dropped Transport Network Coupler. 05829_ Acquired Sub. Monowheel. Sub. Beam Cannon falls loose from the Twisted Machinery. 06199_ Dropped Sub. Beam Cannon. 06199_ Acquired Sub. Beam Cannon. 06199_ Dropped Assault Cannon. 06201_ Acquired Sub. Beam Cannon. Map ----- +----------------------------------------------------+ | #### "" "### #####????????????????????# | | # #### "" "## ###??????????????????????# | | # ### "" "" ###?????????????????????# | | ##### """### "## ##?????????????????????# | | # ##### "#### ### ###?????????????????????# | | # " ####### ######?????????????????????# | | ###### #####??????????????????????? | | ## ## ###?????????????????????????? | | & ] ## #####?????????????????????? ??? | | & ## ####???????????????? ?????? ??# | | ###??????????????????# ????? ?## | | "###??????????????????# ???? # # | | ""# "" #??????????? ?????## ????# ? | | " ### "##?????????? #????# ##?## ? | | ###### "###????????? #????? ## #? | | """"#??##" ##??????? ??????# #? | | "# ##??###"" #??????? ##??????# #? | | "#####????### """"##?????? #???????#= #? | | ###??????????#" #####??????? ##???????#% ## | | ####?????????# ##?######### ## ????##= # | | #?????????## #??# # #### | | ####?????????## #### | | #???????????# ## " " #? | | ##???????????# " "" "#????????# # | | #???????????# # ## " " ""#??#?????# ## | | ##???????????## # # "@s""## ##????# % ] | | ??????????????## ## ## "" ###??## % %%### | | ???????????????### #### ### " #???#### ### | | ????????????????# #??###?# " #?????## % | | ????????????????# ###?????? "] #?????# | | ????????????????###????????"""" ##????# | | ?????????????????????????? """ ##????# ### | | ?????????????????????????? "" ##?????# ####### | | ????????????????????????? # "##??????####????## | | ????????????????????????? ?##???????????###### | | ????????????????????????# ??????????????# ## | | ???????????????????????? ?????????????## % | | ???????????????????????? ????????????## | | ??????????????????????? ????????????# | | ???????????????????????? ?????????????# | | ?????????????????????????? ?????????????## % ### | | ?????????????????????????????????????????# ##?# | | ?????????????????????????????????????????# ##??# | | ?????????????????????????????????????????####???# | | ???????????????????????????????????????????????## | | ????????????????????????????????????????????#### | | ???????????????????????????????????????????## | | ??????????????????????????????????????????## | | ##????????????????????????????????????##### % | | #???????????????????????????????????## | +----------------------------------------------------+ Best States ------------- Heat Dissipation 25 Coolant Potential 50 Energy Generation 15 Energy Capacity 265 Matter Stores 300 Matter Capacity 300 Sight Range 16 Terrain Scan Density 10 ECM Strength 1 Armor Coverage 150 Evasion (%) 50 Recoil Reduction 2 Item Schematics ----------------- None Robot Schematics ------------------ None Fabricated ------------ Nothing Repaired ---------- Nothing Studied --------- None Alien Tech Used ----------------- None Achievements -------------- None Challenges ------------ None Game ------ Seed ShockBarrageSheargun Manual? 0 Play Time 00:36:05 Cumulative 14.6 hours Start 2025.10.23 @ 16:48:14 End 2025.10.23 @ 17:21:51 Sessions 1 Manual Loads 0 Difficulty Rogue Special Mode None Game No. 7 Rogue 7 Adventurer 0 Explorer 0 Win Type - Total 0 Types 0/0/0/0/0/0/0/0/0/0 Lore% 35 Gallery% 27 Achievement% 33 Wizard Run 0 Options --------- Layout 0 ASCII 0 Keyboard 0 Movement Mouse Keybinds 0 Fullscreen 1 Font 24/Smallcaps Map View 183x50 Zoom Use 0% Tactical HUD 1 Map Filters NONE Filters NONE Steam 1 RUN: 002afd19-3c7f-4c55-ad5b-20913518e791